[Event "*** SCC Grand Prix: Titled Tuesday Blitz"]
[Site "Chess.com"]
[Date "2020.07.07"]
[Round "4"]
[White "Dyadya81"]
[Black "IMHansNiemann"]
[Result "0-1"]
[WhiteElo "2736"]
[BlackElo "2936"]
[TimeControl "180+1"]
[EndTime "10:40:18 PDT"]
[Termination "IMHansNiemann won on time"]

1. e4 {[%clk 0:03:00.9]} 1... g6 {[%clk 0:02:58.3]} 2. d4 {[%clk 0:03:00.7]}
2... Bg7 {[%clk 0:02:58]} 3. Nc3 {[%clk 0:03:01.1]} 3... d6 {[%clk 0:02:57.6]}
4. f4 {[%clk 0:03:01]} 4... Nf6 {[%clk 0:02:57.3]} 5. Nf3 {[%clk 0:03:01]} 5...
O-O {[%clk 0:02:57.7]} 6. Bd3 {[%clk 0:02:59.9]} 6... Nc6 {[%clk 0:02:56]} 7. e5
{[%clk 0:02:55.5]} 7... dxe5 {[%clk 0:02:55.2]} 8. fxe5 {[%clk 0:02:51.1]} 8...
Nd5 {[%clk 0:02:51.4]} 9. Nxd5 {[%clk 0:02:50.4]} 9... Qxd5 {[%clk 0:02:51.1]}
10. c3 {[%clk 0:02:47.5]} 10... f6 {[%clk 0:02:46.2]} 11. exf6 {[%clk
0:02:45.6]} 11... exf6 {[%clk 0:02:45.6]} 12. O-O {[%clk 0:02:39.7]} 12... Qd6
{[%clk 0:02:39.3]} 13. Nd2 {[%clk 0:02:26.8]} 13... f5 {[%clk 0:02:14.3]} 14.
Nf3 {[%clk 0:02:23.4]} 14... Be6 {[%clk 0:02:11.1]} 15. Ng5 {[%clk 0:02:17.9]}
15... Bd5 {[%clk 0:02:08.1]} 16. Bf4 {[%clk 0:02:15.8]} 16... Qd7 {[%clk
0:02:07.9]} 17. h4 {[%clk 0:01:59.6]} 17... h6 {[%clk 0:02:02.3]} 18. Nf3 {[%clk
0:01:58]} 18... Rae8 {[%clk 0:02:01.5]} 19. Qd2 {[%clk 0:01:54.1]} 19... Kh7
{[%clk 0:01:58.3]} 20. Kh2 {[%clk 0:01:45.2]} 20... Be4 {[%clk 0:01:52.7]} 21.
Rae1 {[%clk 0:01:40.5]} 21... Qd8 {[%clk 0:01:46.5]} 22. Bg3 {[%clk 0:01:30.5]}
22... Bf6 {[%clk 0:01:35.1]} 23. Bxe4 {[%clk 0:01:21]} 23... Rxe4 {[%clk
0:01:25.8]} 24. Rxe4 {[%clk 0:01:17.6]} 24... fxe4 {[%clk 0:01:25.4]} 25. Ng1
{[%clk 0:01:16.3]} 25... Bxh4 {[%clk 0:01:24.3]} 26. Rxf8 {[%clk 0:01:06.7]}
26... Bxg3+ {[%clk 0:01:24.1]} 27. Kxg3 {[%clk 0:01:07.1]} 27... Qxf8 {[%clk
0:01:24.7]} 28. Qf4 {[%clk 0:00:58]} 28... Qe7 {[%clk 0:01:23.2]} 29. Ne2 {[%clk
0:00:54.2]} 29... Kg7 {[%clk 0:01:16.9]} 30. d5 {[%clk 0:00:52.1]} 30... Nd8
{[%clk 0:00:59.1]} 31. Nd4 {[%clk 0:00:45]} 31... h5 {[%clk 0:00:57]} 32. Kf2
{[%clk 0:00:40.6]} 32... c6 {[%clk 0:00:49.1]} 33. d6 {[%clk 0:00:32.9]} 33...
Qf6 {[%clk 0:00:45.6]} 34. Ke3 {[%clk 0:00:31.2]} 34... Nf7 {[%clk 0:00:41.9]}
35. d7 {[%clk 0:00:21.7]} 35... Qxf4+ {[%clk 0:00:41.3]} 36. Kxf4 {[%clk
0:00:21.6]} 36... Kf6 {[%clk 0:00:41.9]} 37. Kxe4 {[%clk 0:00:08.4]} 37... Ke7
{[%clk 0:00:42.1]} 38. Nf3 {[%clk 0:00:04.5]} 38... Kxd7 {[%clk 0:00:42]} 39.
Nh4 {[%clk 0:00:04.9]} 39... g5 {[%clk 0:00:41.9]} 40. Nf3 {[%clk 0:00:04.1]}
40... Ke6 {[%clk 0:00:41.9]} 41. Nd4+ {[%clk 0:00:04.5]} 41... Kf6 {[%clk
0:00:42.4]} 42. b3 {[%clk 0:00:02.8]} 42... h4 {[%clk 0:00:41.9]} 43. c4 {[%clk
0:00:01.1]} 43... Nd6+ {[%clk 0:00:42.1]} 44. Kf3 {[%clk 0:00:01.5]} 44... Nf5
{[%clk 0:00:42]} 45. Ne2 {[%clk 0:00:01.8]} 45... Ke5 {[%clk 0:00:41.5]} 46. Kg4
{[%clk 0:00:01.8]} 46... Ne3+ {[%clk 0:00:41.8]} 47. Kxg5 {[%clk 0:00:02.2]}
47... Nxg2 {[%clk 0:00:42.3]} 48. Kg4 {[%clk 0:00:02.8]} 48... Ke4 {[%clk
0:00:42.9]} 49. Nc3+ {[%clk 0:00:01.3]} 49... Kd3 {[%clk 0:00:42.5]} 50. Na4
{[%clk 0:00:01.8]} 50... b6 {[%clk 0:00:42.9]} 51. Kh3 {[%clk 0:00:01.3]} 51...
Ne3 {[%clk 0:00:41.8]} 52. Kxh4 {[%clk 0:00:01.7]} 52... Nd1 {[%clk 0:00:42.3]}
53. Kg5 {[%clk 0:00:01.7]} 53... Nc3 {[%clk 0:00:42.5]} 0-1

[Event "*** SCC Grand Prix: Titled Tuesday Blitz"]
[Site "Chess.com"]
[Date "2020.07.07"]
[Round "4"]
[White "YPradafah"]
[Black "Oneofmyturns"]
[Result "1-0"]
[WhiteElo "2531"]
[BlackElo "2713"]
[TimeControl "180+1"]
[EndTime "10:40:18 PDT"]
[Termination "YPradafah won on time"]

1. d4 {[%clk 0:03:00.9]} 1... Nf6 {[%clk 0:02:59.8]} 2. Nf3 {[%clk 0:02:55.8]}
2... d5 {[%clk 0:02:59.8]} 3. Bf4 {[%clk 0:02:56.1]} 3... e6 {[%clk 0:02:59.8]}
4. e3 {[%clk 0:02:56.7]} 4... Bd6 {[%clk 0:03:00.5]} 5. Ne5 {[%clk 0:02:57.2]}
5... O-O {[%clk 0:02:55.9]} 6. Nd2 {[%clk 0:02:56.8]} 6... c5 {[%clk 0:02:54.7]}
7. c3 {[%clk 0:02:57.2]} 7... Nc6 {[%clk 0:02:53.9]} 8. Ndf3 {[%clk 0:02:57.2]}
8... Ne7 {[%clk 0:02:53.7]} 9. Bd3 {[%clk 0:02:53]} 9... b6 {[%clk 0:02:50.5]}
10. O-O {[%clk 0:02:51.3]} 10... Bb7 {[%clk 0:02:50.5]} 11. Bg3 {[%clk
0:02:31.7]} 11... Nf5 {[%clk 0:02:46.7]} 12. a4 {[%clk 0:02:26.8]} 12... a5
{[%clk 0:02:27.7]} 13. Re1 {[%clk 0:02:18.4]} 13... Be7 {[%clk 0:02:22.8]} 14.
Bb5 {[%clk 0:02:00.3]} 14... Rc8 {[%clk 0:01:39.7]} 15. Nd2 {[%clk 0:01:58.2]}
15... Nd6 {[%clk 0:01:38.9]} 16. Bf1 {[%clk 0:01:56.7]} 16... c4 {[%clk
0:01:27.7]} 17. f3 {[%clk 0:01:53.8]} 17... Nfe8 {[%clk 0:01:25]} 18. e4 {[%clk
0:01:46.8]} 18... f6 {[%clk 0:01:22.2]} 19. Ng4 {[%clk 0:01:46.9]} 19... Qd7
{[%clk 0:01:09.1]} 20. Nf2 {[%clk 0:01:42.2]} 20... Nc7 {[%clk 0:01:04]} 21. Qc2
{[%clk 0:01:29.1]} 21... g6 {[%clk 0:00:56.8]} 22. h4 {[%clk 0:01:26.8]} 22...
f5 {[%clk 0:00:49.7]} 23. e5 {[%clk 0:01:14.8]} 23... Nf7 {[%clk 0:00:49]} 24.
f4 {[%clk 0:01:00.6]} 24... h6 {[%clk 0:00:45.5]} 25. Nf3 {[%clk 0:00:58.6]}
25... Kg7 {[%clk 0:00:46]} 26. Be2 {[%clk 0:00:57]} 26... Rh8 {[%clk 0:00:45.9]}
27. Nh3 {[%clk 0:00:57.6]} 27... Bc6 {[%clk 0:00:43.5]} 28. Bf2 {[%clk
0:00:57.2]} 28... Rb8 {[%clk 0:00:43.8]} 29. Nh2 {[%clk 0:00:55]} 29... Qd8
{[%clk 0:00:41]} 30. Nf3 {[%clk 0:00:55.3]} 30... b5 {[%clk 0:00:40.1]} 31. Kh2
{[%clk 0:00:55.7]} 31... b4 {[%clk 0:00:39.8]} 32. Rg1 {[%clk 0:00:55.5]} 32...
h5 {[%clk 0:00:31.2]} 33. Nfg5 {[%clk 0:00:50.9]} 33... Nxg5 {[%clk 0:00:31.2]}
34. fxg5 {[%clk 0:00:51.8]} 34... Qd7 {[%clk 0:00:28.2]} 35. Rgf1 {[%clk
0:00:50.3]} 35... bxc3 {[%clk 0:00:26.9]} 36. bxc3 {[%clk 0:00:50.2]} 36... Rb3
{[%clk 0:00:27.5]} 37. Nf4 {[%clk 0:00:49.3]} 37... Rhb8 {[%clk 0:00:27.8]} 38.
Ra2 {[%clk 0:00:47.9]} 38... Bxa4 {[%clk 0:00:24.2]} 39. Bxh5 {[%clk 0:00:38.2]}
39... Ra3 {[%clk 0:00:19.9]} 40. Qe2 {[%clk 0:00:37.4]} 40... Rxa2 {[%clk
0:00:15.8]} 41. Qxa2 {[%clk 0:00:38.3]} 41... gxh5 {[%clk 0:00:16.4]} 42. Nxh5+
{[%clk 0:00:38.9]} 42... Kf7 {[%clk 0:00:16]} 43. Qe2 {[%clk 0:00:38]} 43... Rh8
{[%clk 0:00:13.4]} 44. Kg1 {[%clk 0:00:38.3]} 44... Qd8 {[%clk 0:00:05.3]} 45.
g4 {[%clk 0:00:35.2]} 45... Bd7 {[%clk 0:00:04.6]} 46. Be1 {[%clk 0:00:33]}
46... Bxg5 {[%clk 0:00:04.4]} 47. gxf5 {[%clk 0:00:32]} 47... exf5 {[%clk
0:00:03.2]} 48. Qg4 {[%clk 0:00:28.7]} 1-0

[Event "*** SCC Grand Prix: Titled Tuesday Blitz"]
[Site "Chess.com"]
[Date "2020.07.07"]
[Round "4"]
[White "Alopekos"]
[Black "Munkhzul_Turmunkh"]
[Result "1-0"]
[WhiteElo "2359"]
[BlackElo "2598"]
[TimeControl "180+1"]
[EndTime "10:40:19 PDT"]
[Termination "Alopekos won by checkmate"]

1. e4 {[%clk 0:02:47.1]} 1... c5 {[%clk 0:02:58.2]} 2. Nc3 {[%clk 0:02:46.9]}
2... Nc6 {[%clk 0:02:57.7]} 3. Nge2 {[%clk 0:02:46.4]} 3... Nf6 {[%clk
0:02:56.3]} 4. d4 {[%clk 0:02:46]} 4... cxd4 {[%clk 0:02:56]} 5. Nxd4 {[%clk
0:02:46.9]} 5... e5 {[%clk 0:02:55.7]} 6. Ndb5 {[%clk 0:02:46.9]} 6... d6 {[%clk
0:02:55.7]} 7. Nd5 {[%clk 0:02:47.4]} 7... Nxd5 {[%clk 0:02:35.9]} 8. exd5
{[%clk 0:02:48.3]} 8... Nb8 {[%clk 0:02:32.1]} 9. Qf3 {[%clk 0:02:47.7]} 9...
Be7 {[%clk 0:02:25.5]} 10. Qc3 {[%clk 0:02:46.1]} 10... Na6 {[%clk 0:02:22.1]}
11. Be3 {[%clk 0:02:46.7]} 11... O-O {[%clk 0:01:55.6]} 12. Nxa7 {[%clk
0:02:45.9]} 12... f5 {[%clk 0:01:54.5]} 13. Bxa6 {[%clk 0:02:25.6]} 13... bxa6
{[%clk 0:01:51.7]} 14. Nc6 {[%clk 0:02:19.7]} 14... Qd7 {[%clk 0:01:51.7]} 15.
f4 {[%clk 0:01:40.5]} 15... exf4 {[%clk 0:01:42.1]} 16. Bxf4 {[%clk 0:00:53.6]}
16... Bf6 {[%clk 0:01:40.2]} 17. Qb4 {[%clk 0:00:50.4]} 17... Re8+ {[%clk
0:01:28.1]} 18. Kf2 {[%clk 0:00:49.7]} 18... Be5 {[%clk 0:01:14.7]} 19. Rhe1
{[%clk 0:00:35.3]} 19... a5 {[%clk 0:00:59.3]} 20. Qd2 {[%clk 0:00:31.4]} 20...
Bxf4 {[%clk 0:00:48.5]} 21. Rxe8+ {[%clk 0:00:27.4]} 21... Qxe8 {[%clk
0:00:48.3]} 22. Qxf4 {[%clk 0:00:28.3]} 22... Qd7 {[%clk 0:00:24.8]} 23. Re1
{[%clk 0:00:26.5]} 23... Bb7 {[%clk 0:00:14.2]} 24. Re7 {[%clk 0:00:26]} 24...
Qc8 {[%clk 0:00:14.4]} 25. Qd4 {[%clk 0:00:21.7]} 25... Qf8 {[%clk 0:00:13.5]}
26. Rxb7 {[%clk 0:00:22]} 26... Re8 {[%clk 0:00:10.4]} 27. Qc3 {[%clk
0:00:10.9]} 27... f4 {[%clk 0:00:10.1]} 28. Nd4 {[%clk 0:00:09.4]} 28... Qf6
{[%clk 0:00:08.2]} 29. Ne6 {[%clk 0:00:07.6]} 29... Qh4+ {[%clk 0:00:08.5]} 30.
Kg1 {[%clk 0:00:08.1]} 30... Re7 {[%clk 0:00:05.8]} 31. Rb8+ {[%clk 0:00:04.7]}
31... Kf7 {[%clk 0:00:05.5]} 32. Rf8+ {[%clk 0:00:04.6]} 32... Kg6 {[%clk
0:00:05.4]} 33. Qd3+ {[%clk 0:00:03.7]} 33... Kh6 {[%clk 0:00:05.2]} 34. Rxf4
{[%clk 0:00:03.5]} 34... Qe1+ {[%clk 0:00:03.4]} 35. Rf1 {[%clk 0:00:03.6]}
35... Qh4 {[%clk 0:00:03.1]} 36. Qe3+ {[%clk 0:00:03.9]} 36... Kg6 {[%clk
0:00:03]} 37. Qd3+ {[%clk 0:00:04.4]} 37... Kh6 {[%clk 0:00:03.1]} 38. g3 {[%clk
0:00:05]} 38... Qh3 {[%clk 0:00:02.9]} 39. Qe3+ {[%clk 0:00:04.7]} 39... Kg6
{[%clk 0:00:03]} 40. Qg5# {[%clk 0:00:05.3]} 1-0

[Event "*** SCC Grand Prix: Titled Tuesday Blitz"]
[Site "Chess.com"]
[Date "2020.07.07"]
[Round "4"]
[White "KyrgyzFighter"]
[Black "karinachess1"]
[Result "0-1"]
[WhiteElo "2315"]
[BlackElo "2497"]
[TimeControl "180+1"]
[EndTime "10:40:19 PDT"]
[Termination "karinachess1 won by checkmate"]

1. c4 {[%clk 0:03:00.9]} 1... Nf6 {[%clk 0:02:59]} 2. Nc3 {[%clk 0:03:01]} 2...
e6 {[%clk 0:02:59.4]} 3. e4 {[%clk 0:03:01.2]} 3... d5 {[%clk 0:02:56.5]} 4. e5
{[%clk 0:03:01.5]} 4... d4 {[%clk 0:02:56.9]} 5. exf6 {[%clk 0:03:01.3]} 5...
dxc3 {[%clk 0:02:57.2]} 6. bxc3 {[%clk 0:03:02.2]} 6... Qxf6 {[%clk 0:02:55.9]}
7. Nf3 {[%clk 0:03:02.8]} 7... b6 {[%clk 0:02:54.5]} 8. d4 {[%clk 0:03:01.1]}
8... h6 {[%clk 0:02:51.9]} 9. Be2 {[%clk 0:02:52.7]} 9... Bb7 {[%clk 0:02:51.8]}
10. O-O {[%clk 0:02:53]} 10... Nd7 {[%clk 0:02:45.8]} 11. Rb1 {[%clk 0:02:47.9]}
11... Be7 {[%clk 0:02:39.6]} 12. c5 {[%clk 0:02:46.6]} 12... O-O {[%clk
0:02:28]} 13. Qa4 {[%clk 0:02:34.4]} 13... Nb8 {[%clk 0:02:00]} 14. Be3 {[%clk
0:02:12.1]} 14... Be4 {[%clk 0:01:54.8]} 15. Rbc1 {[%clk 0:01:54.3]} 15... Rd8
{[%clk 0:01:50.7]} 16. Nd2 {[%clk 0:01:39.9]} 16... Bc6 {[%clk 0:01:47.2]} 17.
Qc2 {[%clk 0:01:36.1]} 17... Nd7 {[%clk 0:01:44]} 18. Ne4 {[%clk 0:01:27.4]}
18... Bxe4 {[%clk 0:01:10.2]} 19. Qxe4 {[%clk 0:01:28.3]} 19... bxc5 {[%clk
0:01:10.6]} 20. Qc6 {[%clk 0:01:19.1]} 20... cxd4 {[%clk 0:00:58.8]} 21. cxd4
{[%clk 0:01:13]} 21... Bd6 {[%clk 0:00:56.8]} 22. Bf3 {[%clk 0:01:09.7]} 22...
Rab8 {[%clk 0:00:44.3]} 23. Qa6 {[%clk 0:01:07.6]} 23... Nb6 {[%clk 0:00:31.4]}
24. Qxa7 {[%clk 0:01:04.6]} 24... Nd5 {[%clk 0:00:31.6]} 25. Bxd5 {[%clk
0:01:04.5]} 25... exd5 {[%clk 0:00:32.5]} 26. Qa4 {[%clk 0:00:46.5]} 26... Qh4
{[%clk 0:00:30.4]} 27. g3 {[%clk 0:00:43]} 27... Qh5 {[%clk 0:00:29]} 28. Qc2
{[%clk 0:00:35.3]} 28... Ra8 {[%clk 0:00:26.5]} 29. a4 {[%clk 0:00:35.1]} 29...
Qf3 {[%clk 0:00:25.3]} 30. Rb1 {[%clk 0:00:33.3]} 30... h5 {[%clk 0:00:25.1]}
31. Bg5 {[%clk 0:00:27.1]} 31... Re8 {[%clk 0:00:25.2]} 32. Rb3 {[%clk
0:00:25.3]} 32... Qg4 {[%clk 0:00:23.4]} 33. Kg2 {[%clk 0:00:23.2]} 33... Qxg5
{[%clk 0:00:22.5]} 34. Rf3 {[%clk 0:00:22.6]} 34... Qg6 {[%clk 0:00:19.6]} 35.
Qc6 {[%clk 0:00:21.8]} 35... Qe4 {[%clk 0:00:16.2]} 36. a5 {[%clk 0:00:20.5]}
36... Rxa5 {[%clk 0:00:13.1]} 37. h4 {[%clk 0:00:21]} 37... Rf8 {[%clk
0:00:12.4]} 38. Qc3 {[%clk 0:00:19.8]} 38... Ra3 {[%clk 0:00:12.1]} 39. Qxa3
{[%clk 0:00:19.8]} 39... Bxa3 {[%clk 0:00:12.1]} 40. Ra1 {[%clk 0:00:20.4]}
40... Bd6 {[%clk 0:00:12.1]} 41. Ra3 {[%clk 0:00:20.1]} 41... Bxa3 {[%clk
0:00:11]} 42. Kh3 {[%clk 0:00:19.6]} 42... Qxf3 {[%clk 0:00:10.1]} 43. Kh2
{[%clk 0:00:20.5]} 43... Qxf2+ {[%clk 0:00:09.6]} 44. Kh3 {[%clk 0:00:21.4]}
44... Qf1+ {[%clk 0:00:09.3]} 45. Kh2 {[%clk 0:00:22.3]} 45... Bb2 {[%clk
0:00:06.8]} 46. g4 {[%clk 0:00:23.2]} 46... Bc1 {[%clk 0:00:06.2]} 47. Kg3
{[%clk 0:00:21.2]} 47... Bf4# {[%clk 0:00:06.6]} 0-1

[Event "*** SCC Grand Prix: Titled Tuesday Blitz"]
[Site "Chess.com"]
[Date "2020.07.07"]
[Round "4"]
[White "larisakalinina"]
[Black "pavelalexandru07"]
[Result "0-1"]
[WhiteElo "1926"]
[BlackElo "2166"]
[TimeControl "180+1"]
[EndTime "10:40:19 PDT"]
[Termination "pavelalexandru07 won by checkmate"]

1. e4 {[%clk 0:03:00.9]} 1... c5 {[%clk 0:02:59.6]} 2. Nf3 {[%clk 0:03:00.4]}
2... d6 {[%clk 0:02:59.4]} 3. d4 {[%clk 0:03:00.5]} 3... cxd4 {[%clk 0:02:59.6]}
4. Nxd4 {[%clk 0:03:01.1]} 4... Nf6 {[%clk 0:02:59.8]} 5. Nc3 {[%clk 0:03:01.1]}
5... a6 {[%clk 0:02:59.9]} 6. f4 {[%clk 0:02:59.5]} 6... e5 {[%clk 0:02:59.4]}
7. Nf3 {[%clk 0:02:58.2]} 7... Qc7 {[%clk 0:02:59.4]} 8. a4 {[%clk 0:02:55.4]}
8... Nbd7 {[%clk 0:02:50]} 9. Bd3 {[%clk 0:02:53.7]} 9... b6 {[%clk 0:02:46.2]}
10. O-O {[%clk 0:02:53.2]} 10... Bb7 {[%clk 0:02:46.4]} 11. Qe1 {[%clk
0:02:52.7]} 11... Be7 {[%clk 0:02:26.7]} 12. Qg3 {[%clk 0:02:43.3]} 12... O-O
{[%clk 0:02:25.3]} 13. fxe5 {[%clk 0:02:41.1]} 13... dxe5 {[%clk 0:02:20]} 14.
Bh6 {[%clk 0:02:38]} 14... Nh5 {[%clk 0:02:09.5]} 15. Qh3 {[%clk 0:02:36.2]}
15... Ndf6 {[%clk 0:01:51.7]} 16. Be3 {[%clk 0:02:19.3]} 16... g6 {[%clk
0:01:34.2]} 17. Ng5 {[%clk 0:02:05.4]} 17... h6 {[%clk 0:01:06.2]} 18. Nxf7
{[%clk 0:01:53]} 18... Rxf7 {[%clk 0:01:01.2]} 19. Bxh6 {[%clk 0:01:47.1]} 19...
Kh7 {[%clk 0:00:36.4]} 20. Bg5 {[%clk 0:01:41.8]} 20... Raf8 {[%clk 0:00:31.8]}
21. g4 {[%clk 0:01:25.9]} 21... Bc8 {[%clk 0:00:31.6]} 22. Be2 {[%clk
0:01:24.4]} 22... Kg8 {[%clk 0:00:29.2]} 23. Qg2 {[%clk 0:01:14.1]} 23... Nf4
{[%clk 0:00:28.4]} 24. Bxf4 {[%clk 0:01:10.2]} 24... exf4 {[%clk 0:00:29.3]} 25.
g5 {[%clk 0:01:04.3]} 25... Nd7 {[%clk 0:00:25.3]} 26. Nd5 {[%clk 0:01:03.9]}
26... Bc5+ {[%clk 0:00:20.7]} 27. Kh1 {[%clk 0:01:03.6]} 27... Qe5 {[%clk
0:00:20.7]} 28. Bc4 {[%clk 0:00:48.3]} 28... Bb7 {[%clk 0:00:20.3]} 29. Rae1
{[%clk 0:00:42.7]} 29... Kg7 {[%clk 0:00:18.8]} 30. c3 {[%clk 0:00:39.1]} 30...
Bxd5 {[%clk 0:00:14.2]} 31. Bxd5 {[%clk 0:00:37.5]} 31... Re7 {[%clk 0:00:13.2]}
32. Qf3 {[%clk 0:00:35.7]} 32... Bd6 {[%clk 0:00:12.8]} 33. Kg2 {[%clk
0:00:32.5]} 33... Ree8 {[%clk 0:00:12.9]} 34. Rh1 {[%clk 0:00:31.6]} 34... Rh8
{[%clk 0:00:11.1]} 35. h4 {[%clk 0:00:31.5]} 35... Ref8 {[%clk 0:00:10.8]} 36.
Reg1 {[%clk 0:00:28.2]} 36... Nc5 {[%clk 0:00:08.8]} 37. Kf2 {[%clk 0:00:26.6]}
37... Nxa4 {[%clk 0:00:07.9]} 38. Ke2 {[%clk 0:00:24.5]} 38... Nxb2 {[%clk
0:00:07.7]} 39. h5 {[%clk 0:00:23.1]} 39... Na4 {[%clk 0:00:07.6]} 40. h6+
{[%clk 0:00:18.8]} 40... Kh7 {[%clk 0:00:07.6]} 41. Rc1 {[%clk 0:00:16.5]} 41...
Rc8 {[%clk 0:00:04.6]} 42. c4 {[%clk 0:00:15.6]} 42... Qb2+ {[%clk 0:00:02.2]}
43. Kd3 {[%clk 0:00:12.8]} 43... Nc5# {[%clk 0:00:02.4]} 0-1

[Event "*** SCC Grand Prix: Titled Tuesday Blitz"]
[Site "Chess.com"]
[Date "2020.07.07"]
[Round "4"]
[White "Siniauski"]
[Black "totoro9"]
[Result "1-0"]
[WhiteElo "2464"]
[BlackElo "2300"]
[TimeControl "180+1"]
[EndTime "10:40:20 PDT"]
[Termination "Siniauski won by resignation"]

1. e4 {[%clk 0:03:00.9]} 1... c5 {[%clk 0:02:58.7]} 2. Nf3 {[%clk 0:03:00.7]}
2... d6 {[%clk 0:02:59.2]} 3. Bb5+ {[%clk 0:03:00.9]} 3... Bd7 {[%clk 0:02:59]}
4. Bxd7+ {[%clk 0:03:00.8]} 4... Qxd7 {[%clk 0:02:58.9]} 5. O-O {[%clk
0:03:00.9]} 5... Nf6 {[%clk 0:02:54.6]} 6. Qe2 {[%clk 0:03:00.7]} 6... Nc6
{[%clk 0:02:47.5]} 7. b3 {[%clk 0:02:59.2]} 7... e6 {[%clk 0:02:44.3]} 8. Bb2
{[%clk 0:02:59.1]} 8... Be7 {[%clk 0:02:44.8]} 9. Rd1 {[%clk 0:02:59.1]} 9...
O-O {[%clk 0:02:22.9]} 10. c4 {[%clk 0:02:57.5]} 10... e5 {[%clk 0:02:14.8]} 11.
Nc3 {[%clk 0:02:53.8]} 11... Nd4 {[%clk 0:02:02.3]} 12. Nxd4 {[%clk 0:02:48.4]}
12... exd4 {[%clk 0:01:45.8]} 13. Nd5 {[%clk 0:02:43.4]} 13... Nxd5 {[%clk
0:01:45.4]} 14. exd5 {[%clk 0:02:37.3]} 14... Rae8 {[%clk 0:01:42.9]} 15. Qf3
{[%clk 0:02:36.2]} 15... Bg5 {[%clk 0:01:33.6]} 16. a3 {[%clk 0:02:32.3]} 16...
g6 {[%clk 0:01:17.1]} 17. b4 {[%clk 0:02:23.4]} 17... b6 {[%clk 0:01:13.4]} 18.
b5 {[%clk 0:02:21.5]} 18... a5 {[%clk 0:01:00.1]} 19. d3 {[%clk 0:01:52.6]}
19... h5 {[%clk 0:00:57.1]} 20. Re1 {[%clk 0:01:43.5]} 20... Qg4 {[%clk
0:00:51.5]} 21. Qg3 {[%clk 0:01:12.1]} 21... Bf4 {[%clk 0:00:50.1]} 22. Qxg4
{[%clk 0:01:09.2]} 22... hxg4 {[%clk 0:00:49.9]} 23. g3 {[%clk 0:01:06.8]} 23...
Bd2 {[%clk 0:00:49.1]} 24. Rxe8 {[%clk 0:01:01.6]} 24... Rxe8 {[%clk 0:00:48.7]}
25. Kf1 {[%clk 0:01:01.2]} 25... f5 {[%clk 0:00:41.3]} 26. Rd1 {[%clk
0:00:59.4]} 26... Bg5 {[%clk 0:00:38.7]} 27. Re1 {[%clk 0:00:51.6]} 27... Rxe1+
{[%clk 0:00:38]} 28. Kxe1 {[%clk 0:00:52.5]} 28... Kf7 {[%clk 0:00:37.4]} 29.
Kf1 {[%clk 0:00:52.3]} 29... Kf6 {[%clk 0:00:34]} 30. Kg2 {[%clk 0:00:51.5]}
30... Ke5 {[%clk 0:00:31.7]} 31. h3 {[%clk 0:00:47.4]} 31... Bd2 {[%clk
0:00:29.8]} 32. f4+ {[%clk 0:00:28.6]} 32... Kf6 {[%clk 0:00:14.5]} 33. h4
{[%clk 0:00:16.4]} 33... Be1 {[%clk 0:00:13.2]} 34. Bc1 {[%clk 0:00:13.6]} 34...
Bc3 {[%clk 0:00:10.9]} 35. Kf2 {[%clk 0:00:12.4]} 35... Ba1 {[%clk 0:00:10.4]}
36. Bd2 {[%clk 0:00:11.6]} 36... Bb2 {[%clk 0:00:10.8]} 37. a4 {[%clk
0:00:11.6]} 37... Ba3 {[%clk 0:00:11.4]} 38. Bxa5 {[%clk 0:00:08.2]} 38... bxa5
{[%clk 0:00:02.4]} 39. b6 {[%clk 0:00:09.1]} 39... Bc1 {[%clk 0:00:01.5]} 40. b7
{[%clk 0:00:09.3]} 40... Be3+ {[%clk 0:00:02]} 41. Kg2 {[%clk 0:00:09.7]} 1-0

[Event "*** SCC Grand Prix: Titled Tuesday Blitz"]
[Site "Chess.com"]
[Date "2020.07.07"]
[Round "4"]
[White "allvim"]
[Black "Love_craft"]
[Result "1-0"]
[WhiteElo "2275"]
[BlackElo "2419"]
[TimeControl "180+1"]
[EndTime "10:40:20 PDT"]
[Termination "allvim won by checkmate"]

1. e4 {[%clk 0:03:00.9]} 1... g6 {[%clk 0:02:59.7]} 2. Nf3 {[%clk 0:03:00.8]}
2... Bg7 {[%clk 0:02:59.8]} 3. Nc3 {[%clk 0:03:01.5]} 3... d6 {[%clk 0:03:00]}
4. d4 {[%clk 0:03:02.1]} 4... Nd7 {[%clk 0:03:00.5]} 5. Bc4 {[%clk 0:03:01.5]}
5... e5 {[%clk 0:02:29.1]} 6. Ng5 {[%clk 0:01:32.3]} 6... Nh6 {[%clk 0:02:26.4]}
7. Bxf7+ {[%clk 0:01:22.7]} 7... Nxf7 {[%clk 0:02:21]} 8. Ne6 {[%clk 0:01:22.2]}
8... Qh4 {[%clk 0:02:03.2]} 9. Nxg7+ {[%clk 0:01:05]} 9... Ke7 {[%clk 0:01:45]}
10. Nd5+ {[%clk 0:01:03]} 10... Kf8 {[%clk 0:01:45.3]} 11. Ne6+ {[%clk
0:01:02.8]} 11... Kg8 {[%clk 0:01:38.7]} 12. Qg4 {[%clk 0:00:54.1]} 12... Qf6
{[%clk 0:00:47.7]} 13. Nxf6+ {[%clk 0:00:47.6]} 13... Nxf6 {[%clk 0:00:48.6]}
14. Qf3 {[%clk 0:00:46.8]} 14... Ne8 {[%clk 0:00:48.7]} 15. d5 {[%clk 0:00:44]}
15... h6 {[%clk 0:00:42.3]} 16. Bd2 {[%clk 0:00:40.8]} 16... Rh7 {[%clk
0:00:34.9]} 17. O-O-O {[%clk 0:00:40]} 17... Ng7 {[%clk 0:00:33.3]} 18. Nxc7
{[%clk 0:00:34.2]} 18... Rb8 {[%clk 0:00:30.6]} 19. Bb4 {[%clk 0:00:30.6]} 19...
Nh5 {[%clk 0:00:22.8]} 20. Ne8 {[%clk 0:00:19.2]} 20... Ng5 {[%clk 0:00:10.2]}
21. Nf6+ {[%clk 0:00:17.6]} 21... Nxf6 {[%clk 0:00:09.3]} 22. Qxf6 {[%clk
0:00:18.5]} 22... Rg7 {[%clk 0:00:08.6]} 23. Qxd6 {[%clk 0:00:15.8]} 23... Ra8
{[%clk 0:00:08.3]} 24. Qf8+ {[%clk 0:00:14.6]} 24... Kh7 {[%clk 0:00:08.4]} 25.
f3 {[%clk 0:00:10.6]} 25... Rg8 {[%clk 0:00:08.2]} 26. Qe7+ {[%clk 0:00:10.1]}
26... Rg7 {[%clk 0:00:08.7]} 27. Qxe5 {[%clk 0:00:10.7]} 27... Bd7 {[%clk
0:00:08.1]} 28. Bc3 {[%clk 0:00:09.7]} 28... Rf7 {[%clk 0:00:07.6]} 29. h4
{[%clk 0:00:09.7]} 29... Re8 {[%clk 0:00:06.4]} 30. hxg5 {[%clk 0:00:06.1]}
30... Rxe5 {[%clk 0:00:05.8]} 31. Rxh6+ {[%clk 0:00:05.5]} 31... Kg8 {[%clk
0:00:06.1]} 32. Bxe5 {[%clk 0:00:06.3]} 32... Re7 {[%clk 0:00:05.9]} 33. Rh8+
{[%clk 0:00:06.3]} 33... Kf7 {[%clk 0:00:06.3]} 34. Rh7+ {[%clk 0:00:07.2]}
34... Ke8 {[%clk 0:00:06.8]} 35. Rxe7+ {[%clk 0:00:08.1]} 35... Kxe7 {[%clk
0:00:07.7]} 36. Bf6+ {[%clk 0:00:08.8]} 36... Kf7 {[%clk 0:00:07.8]} 37. e5
{[%clk 0:00:09.4]} 37... Bf5 {[%clk 0:00:07.5]} 38. e6+ {[%clk 0:00:09.9]} 38...
Ke8 {[%clk 0:00:07.6]} 39. Rh1 {[%clk 0:00:10.4]} 39... Bh3 {[%clk 0:00:04.4]}
40. Rxh3 {[%clk 0:00:10]} 40... b5 {[%clk 0:00:02.8]} 41. Rh8# {[%clk
0:00:10.3]} 1-0